bitfinex/quotes_BTCUSD_20251226
["timestamp","ask_amount","ask_price","bid_price","bid_amount"]
[1766773359804,0.08104,87427.0,87414.0,0.00010617]
[1766773360028,0.01143693,87436.0,87414.0,0.00010617]
[1766773360228,0.01143693,87436.0,87427.0,0.000442]
[1766773360229,0.06956,87434.0,87427.0,0.000442]
[1766773360433,0.08099719,87434.0,87427.0,0.000442]
[1766773360631,0.01143759,87431.0,87427.0,0.000442]
[1766773360929,0.01143759,87431.0,87414.0,0.00010617]
[1766773360930,0.01143785,87429.0,87414.0,0.00010617]
[1766773361133,0.06956,87429.0,87414.0,0.00010617]
[1766773362885,0.01143798,87428.0,87414.0,0.00010617]
[1766773363090,0.08099811,87427.0,87414.0,0.00010617]
[1766773363240,0.06956,87426.0,87414.0,0.00010617]
[1766773363441,0.06956,87425.0,87414.0,0.00010617]
[1766773363637,0.06956,87418.0,87414.0,1.7e-07]
[1766773363836,0.01143916,87419.0,87406.0,0.0307854]
[1766773363837,0.07215,87416.0,87406.0,0.0307854]
[1766773364077,0.07215,87416.0,87405.0,0.0307854]
[1766773364078,0.08358955,87416.0,87405.0,0.0307854]
[1766773364410,0.06863609,87418.0,87404.0,0.0309854]
[1766773364411,0.07364,87414.0,87404.0,0.0309854]
[1766773364691,0.07364,87414.0,87404.0,0.0002]
[1766773366156,0.07371348,87414.0,87404.0,0.0002]
[1766773366568,0.07316548,87414.0,87404.0,0.0002]
[1766773366920,7.348e-05,87414.0,87404.0,0.0002]
[1766773371963,0.01088062,87414.0,87404.0,0.0002]
[1766773373876,7.348e-05,87414.0,87404.0,0.01164112]
[1766773374030,7.348e-05,87414.0,87404.0,0.0002]
[1766773376103,7.348e-05,87414.0,87404.0,0.01164112]
[1766773376294,7.348e-05,87414.0,87404.0,0.0002]
[1766773376444,7.348e-05,87414.0,87404.0,0.01164112]
[1766773376644,7.348e-05,87414.0,87405.0,0.01144099]
[1766773376844,7.348e-05,87414.0,87404.0,0.01164112]
[1766773377967,7.348e-05,87414.0,87405.0,0.01144099]
[1766773378167,0.04134471,87414.0,87404.0,0.01164112]
[1766773379855,7.348e-05,87414.0,87404.0,0.0002]
[1766773381323,7.348e-05,87414.0,87403.0,0.0422654]
[1766773381459,7.348e-05,87414.0,87403.0,0.01148]
[1766773381659,0.00027348,87414.0,87403.0,0.01148]
[1766773382070,0.000899,87403.0,87402.0,0.0307854]
[1766773382271,0.07364,87411.0,87402.0,0.01148]
[1766773383027,0.00027348,87414.0,87402.0,0.01148]
[1766773383206,0.05610672,87414.0,87402.0,0.01148]
[1766773385547,0.05610672,87414.0,87403.0,0.01144125]
[1766773385731,0.05610672,87414.0,87402.0,0.02292138]
[1766773386115,0.05610672,87414.0,87402.0,0.01148]
[1766773386734,0.05610672,87414.0,87402.0,0.02292138]
[1766773386987,0.01148,87423.0,87414.0,0.0002]
[1766773387206,0.08512,87423.0,87414.0,0.0002]
[1766773387392,0.08512,87423.0,87402.0,0.01148]
[1766773387393,0.08512,87423.0,87406.0,0.01144086]
[1766773387604,0.08512,87423.0,87406.0,7.348e-05]
[1766773387806,0.08512,87423.0,87406.0,0.01151434]
[1766773388022,0.08512,87423.0,87406.0,7.348e-05]
[1766773390019,0.07364,87422.0,87406.0,7.348e-05]
[1766773392391,0.07364,87422.0,87406.0,0.01151434]
[1766773392817,0.07364,87422.0,87406.0,7.348e-05]
[1766773393380,0.07364,87422.0,87406.0,0.01151434]
[1766773393593,0.04886214,87432.0,87414.0,0.01143981]
[1766773393800,0.08512,87429.0,87422.0,0.0002]
[1766773394050,0.01074079,87428.0,87414.0,0.07021391]
[1766773394245,0.08512,87429.0,87414.0,0.07021391]
[1766773394442,0.08512,87429.0,87414.0,0.0587741]
[1766773395021,0.08512,87429.0,87414.0,0.01148]
[1766773395627,0.09655785,87429.0,87414.0,0.01148]
[1766773395833,0.06905,87428.0,87414.0,0.01148]
[1766773397265,0.08048798,87428.0,87414.0,0.01148]
[1766773397487,0.06905,87426.0,87414.0,0.01148]
[1766773399027,0.07021588,87425.0,87414.0,0.01148]
[1766773399263,0.06905,87426.0,87414.0,0.01148]
[1766773399468,0.08048824,87426.0,87414.0,0.01148]
[1766773399869,0.06905,87426.0,87414.0,0.01148]
[1766773400908,0.000349,87414.0,87411.0,0.01148]
[1766773401141,0.06905,87419.0,87411.0,0.01148]
[1766773405469,0.06905,87419.0,87410.0,0.01148]
[1766773408053,0.06905,87419.0,87410.0,0.00614879]
[1766773408954,0.45006091,87421.0,87406.0,7.348e-05]
[1766773409151,0.06905,87415.0,87407.0,0.01148]
[1766773409374,0.06905,87412.0,87406.0,7.348e-05]
[1766773409918,0.0114402,87411.0,87406.0,7.348e-05]
[1766773410051,0.08049046,87409.0,87406.0,3.48e-06]
[1766773410392,0.06905,87409.0,87406.0,3.48e-06]
[1766773410588,0.02291968,87415.0,87409.0,0.000549]
[1766773410792,0.01143981,87414.0,87409.0,0.000549]
[1766773410971,0.02291968,87415.0,87406.0,3.48e-06]
[1766773410972,0.08053,87415.0,87406.0,3.48e-06]
[1766773411335,0.01148,87415.0,87406.0,3.48e-06]
[1766773412144,0.00597854,87414.0,87406.0,3.48e-06]
[1766773413943,0.06077939,87414.0,87406.0,3.48e-06]
[1766773415851,0.06905,87413.0,87406.0,3.48e-06]
[1766773416957,0.0114402,87411.0,87406.0,3.48e-06]
[1766773417121,0.01144033,87410.0,87406.0,3.48e-06]
[1766773417320,0.06905,87410.0,87406.0,3.48e-06]
[1766773417524,0.06905,87410.0,87394.0,0.0002]
[1766773417525,0.0236455,87410.0,87394.0,0.0002]
[1766773417725,0.0236455,87410.0,87388.0,0.06170461]
[1766773417726,0.06905,87391.0,87383.0,0.04104754]
[1766773417945,0.06905,87385.0,87378.0,0.01168]
[1766773418107,0.06905,87385.0,87378.0,0.01177388]
[1766773419810,0.068501,87385.0,87378.0,0.01177388]
[1766773420306,0.068501,87385.0,87378.0,0.00029388]
[1766773420447,0.06558778,87384.0,87378.0,0.00029388]
[1766773423740,0.06558778,87384.0,87378.0,8.8e-07]
[1766773423741,0.05721936,87383.0,87378.0,8.8e-07]
[1766773423940,0.06558778,87384.0,87378.0,8.8e-07]
[1766773424320,0.068501,87385.0,87378.0,8.8e-07]
[1766773425061,0.07994461,87385.0,87378.0,8.8e-07]
[1766773425688,0.068501,87385.0,87378.0,8.8e-07]
[1766773425893,0.068208,87385.0,87378.0,8.8e-07]
[1766773430082,0.45006091,87390.0,87378.0,8.8e-07]
[1766773430083,0.45006091,87390.0,87379.0,0.01144439]
[1766773430287,0.503178,87390.0,87379.0,0.01144439]
[1766773430412,0.05311709,87390.0,87378.0,8.8e-07]
[1766773430615,0.45006091,87390.0,87378.0,0.0114454]
[1766773430863,0.06963,87396.0,87378.0,0.0114454]
[1766773431066,0.06963,87396.0,87384.0,0.01144374]
[1766773431290,0.05290523,87396.0,87385.0,0.01144361]
[1766773431426,0.01148,87397.0,87385.0,0.01144361]
[1766773431970,0.01148,87397.0,87384.0,0.01144374]
[1766773432180,0.01148,87397.0,87387.0,0.45006091]
[1766773432356,0.06963,87403.0,87386.0,0.0572174]
[1766773432557,0.06963,87403.0,87387.0,0.01144334]
[1766773432755,0.06963,87403.0,87386.0,0.01144348]
[1766773432975,0.06963,87403.0,87387.0,0.01144334]
[1766773433500,0.06963,87403.0,87388.0,0.01144321]
[1766773433837,0.06963,87403.0,87387.0,0.01144334]
[1766773434103,0.06963,87403.0,87387.0,0.00982034]
[1766773435075,0.06963,87403.0,87388.0,0.01144321]
[1766773435278,0.06963,87403.0,87389.0,0.01144308]
[1766773435485,0.01148,87406.0,87397.0,0.01144204]
[1766773435682,0.06963,87412.0,87400.0,0.01144164]
[1766773436017,0.06963,87412.0,87400.0,0.46150255]
[1766773436224,0.06963,87412.0,87400.0,0.45006091]
[1766773436854,0.06963,87412.0,87398.0,0.0114419]
[1766773437069,0.06963,87412.0,87400.0,0.45006091]
[1766773437070,0.08242134,87412.0,87400.0,0.45006091]
[1766773437238,0.01148,87413.0,87400.0,0.45006091]
[1766773437430,0.01148,87413.0,87400.0,0.46150255]
[1766773437617,0.01148,87413.0,87400.0,0.45006091]
[1766773438058,0.01148,87413.0,87399.0,0.01144177]
[1766773438377,0.00582834,87412.0,87398.0,0.0114419]
[1766773438578,0.00582834,87412.0,87399.0,0.01144177]
[1766773438916,0.00582834,87412.0,87398.0,0.0114419]
[1766773439447,0.00582834,87412.0,87399.0,0.01144177]
[1766773440072,0.00582834,87412.0,87400.0,0.01144164]
[1766773440293,0.00582834,87412.0,87399.0,0.01144177]
[1766773441055,0.00582834,87412.0,87400.0,0.01144164]
[1766773441282,0.06963,87430.0,87415.0,0.01143968]
[1766773441502,0.01148,87427.0,87416.0,0.01143955]
[1766773441720,0.0002,87422.0,87415.0,0.06863772]
[1766773441922,0.0002,87422.0,87416.0,0.05988381]
[1766773442131,0.01148,87427.0,87416.0,0.04527681]
[1766773442340,0.01148,87427.0,87416.0,0.04356681]
[1766773442571,0.00035738,87427.0,87415.0,0.01143968]
[1766773442779,0.00035738,87427.0,87424.0,0.0114385]
[1766773443002,0.01148,87432.0,87418.0,0.01148]
[1766773443203,0.000549,87424.0,87418.0,0.01148]
[1766773443426,0.08121713,87432.0,87418.0,0.01148]
[1766773443612,0.08121713,87432.0,87418.0,0.02291929]
[1766773443920,0.08121713,87432.0,87420.0,0.01143902]
[1766773444079,0.08121713,87432.0,87422.0,0.01143876]
[1766773444336,0.08121713,87432.0,87423.0,0.01143863]
[1766773444538,0.08121713,87432.0,87420.0,0.06863363]
[1766773444729,0.08121713,87432.0,87422.0,0.01143876]
[1766773444886,0.08121713,87432.0,87420.0,0.06863363]
[1766773445290,0.08121713,87432.0,87420.0,0.01143902]
[1766773445916,0.08121713,87432.0,87418.0,0.08011514]
[1766773445917,0.08121713,87432.0,87418.0,0.01148]
[1766773446643,0.08121713,87432.0,87419.0,0.01143916]
[1766773447208,0.08121713,87432.0,87418.0,0.01148]
[1766773447401,0.08121713,87432.0,87419.0,0.01143916]
[1766773447632,0.08121713,87432.0,87418.0,0.02291929]
[1766773447897,0.08121713,87432.0,87419.0,0.01143916]
[1766773448861,0.08121713,87432.0,87418.0,0.01148]
[1766773449667,0.08121713,87432.0,87418.0,0.02291929]
[1766773450244,0.08121713,87432.0,87419.0,0.01143916]
[1766773450768,0.01158713,87432.0,87420.0,0.01143902]
[1766773451155,0.01158713,87432.0,87419.0,0.01143916]
[1766773451515,0.01158713,87432.0,87418.0,0.02291929]
[1766773452512,0.01158713,87432.0,87418.0,0.01148]
[1766773452716,0.01158713,87432.0,87418.0,0.02291929]
[1766773453098,0.01040906,87431.0,87418.0,0.01148]
[1766773453269,0.01143772,87430.0,87418.0,0.01148]
[1766773453493,0.01040906,87431.0,87418.0,0.01148]
[1766773453649,0.06963,87430.0,87418.0,0.01148]
[1766773456639,0.06963,87430.0,87417.0,0.01148]
[1766773458523,0.08575758,87430.0,87417.0,0.01148]
[1766773460865,0.06963,87430.0,87417.0,0.01148]
[1766773462570,0.06963,87430.0,87417.0,0.02291942]
[1766773463319,0.06963,87430.0,87418.0,0.01143929]
[1766773463518,0.06963,87430.0,87417.0,0.02291942]
[1766773463951,0.06963,87430.0,87418.0,0.01143929]
[1766773464318,0.06963,87430.0,87419.0,0.01143916]
[1766773464744,0.06963,87430.0,87418.0,0.01143929]
[1766773465512,0.06963,87430.0,87417.0,0.02291942]
[1766773466277,0.06963,87430.0,87418.0,0.01143929]
[1766773467521,0.06963,87430.0,87417.0,0.02291942]
[1766773468464,0.06963,87430.0,87418.0,0.01143929]
[1766773469245,0.06963,87430.0,87417.0,0.02291942]
[1766773470529,0.06963,87430.0,87418.0,0.01143929]
[1766773470749,0.06963,87430.0,87417.0,0.02291942]
[1766773471083,0.06963,87430.0,87418.0,0.01143929]
[1766773471278,0.06963,87430.0,87417.0,0.02291942]
[1766773473298,0.06963,87430.0,87418.0,0.01143929]
[1766773473461,0.06963,87430.0,87417.0,0.02291942]
[1766773475044,0.06963,87430.0,87418.0,0.01143929]
[1766773475242,0.06963,87430.0,87417.0,0.01148]
[1766773475551,0.06963,87430.0,87417.0,0.02291942]
[1766773476642,0.06963,87430.0,87418.0,0.01143929]
[1766773477193,0.06963,87430.0,87417.0,0.02291942]
[1766773477662,0.06963,87430.0,87417.0,0.05385638]
[1766773478479,0.06963,87430.0,87417.0,0.04241696]
[1766773478811,0.06963,87430.0,87417.0,0.05385638]
[1766773479269,0.06963,87430.0,87417.0,0.04241696]
[1766773479407,0.06963,87430.0,87417.0,0.05385638]
[1766773480394,0.06963,87430.0,87417.0,0.02291942]
[1766773480532,0.06963,87430.0,87417.0,0.05385648]
[1766773480730,0.06963,87430.0,87418.0,0.01143929]
[1766773481565,0.06963,87430.0,87417.0,0.05385648]
[1766773483186,0.06901,87428.0,87417.0,0.04186806]
[1766773484205,0.00010713,87432.0,87424.0,0.0114385]
[1766773484500,0.00010713,87432.0,87427.0,0.01143811]
[1766773484728,0.05268316,87449.0,87425.0,0.01143837]
[1766773484729,0.03093556,87454.0,87438.0,0.01143667]
[1766773484860,0.01143366,87461.0,87438.0,0.01143667]
[1766773484861,0.08183079,87449.0,87438.0,0.01143667]
[1766773485204,1.00009395,87450.0,87437.0,0.0686636]
[1766773485205,1.00009395,87450.0,87439.0,0.30008019]
[1766773485343,0.07109,87449.0,87440.0,0.45008019]
[1766773485548,0.07109,87449.0,87440.0,0.30008019]
[1766773485787,1.00009395,87450.0,87441.0,0.06891]
[1766773486547,1.00009395,87450.0,87440.0,0.30008019]
[1766773486754,1.00009395,87450.0,87441.0,0.06891]
[1766773487865,1.00009395,87450.0,87438.0,0.06891]
[1766773488941,1.00009395,87450.0,87440.0,0.08034641]
[1766773489143,1.00009395,87450.0,87441.0,0.06891]
[1766773489350,1.00009395,87450.0,87441.0,0.08034628]
[1766773489562,1.00009395,87450.0,87447.0,0.01143549]
[1766773489563,0.31957238,87450.0,87447.0,0.01143549]
[1766773489763,0.03806,87466.0,87450.0,0.0114351]
[1766773489959,0.0002,87467.0,87448.0,0.02291536]
[1766773489960,0.0002,87467.0,87456.0,0.46151451]
[1766773490114,0.0002,87467.0,87457.0,0.02291419]
[1766773490316,0.0002,87467.0,87458.0,0.01143405]
[1766773490560,0.0002,87467.0,87457.0,0.02291419]
[1766773490789,0.0002,87467.0,87457.0,0.01148]
[1766773491361,0.07109,87475.0,87457.0,0.02291419]
[1766773491519,0.07109,87475.0,87457.0,0.08770922]
[1766773491977,0.07109,87475.0,87457.0,0.07627503]
[1766773493151,0.01143222,87472.0,87457.0,0.06479503]
[1766773493356,0.001099,87457.0,87448.0,0.06280988]
[1766773493555,0.001099,87457.0,87443.0,0.13031354]
[1766773493556,0.00120611,87457.0,87449.0,0.01148]
[1766773493736,0.00010711,87457.0,87449.0,0.01148]
[1766773496463,0.00010711,87457.0,87443.0,0.18124377]
[1766773496464,0.001099,87449.0,87443.0,0.18124377]
[1766773496713,0.001099,87449.0,87444.0,0.01148]
[1766773496941,0.01143458,87454.0,87444.0,0.01148]
[1766773497129,0.07109,87455.0,87445.0,0.01148]
[1766773498660,0.07109,87455.0,87445.0,0.010931]
[1766773499021,0.08272445,87455.0,87445.0,0.010931]
[1766773499726,0.07129,87455.0,87445.0,0.010931]
[1766773501647,0.01143484,87452.0,87446.0,0.01148]
[1766773501830,0.00055,87446.0,87435.0,0.0002]
[1766773502013,0.01143484,87452.0,87436.0,0.01148]
[1766773502991,0.44966035,87450.0,87435.0,0.0002]
[1766773503222,0.44966035,87450.0,87433.0,0.06187722]
[1766773503223,0.44966035,87443.0,87424.0,0.03081593]
[1766773503431,0.06861412,87446.0,87421.0,0.13031641]
[1766773503432,0.44966035,87440.0,87426.0,0.06133144]
[1766773503635,0.44966035,87440.0,87425.0,0.01148]
[1766773503957,0.44966035,87440.0,87425.0,0.02291837]
[1766773504176,0.07109,87442.0,87425.0,0.02291837]
[1766773504399,0.44966035,87440.0,87425.0,0.01148]
[1766773505153,0.44966035,87440.0,87418.0,0.03081593]
[1766773505154,0.07164,87425.0,87414.0,0.01148]
[1766773505281,0.44966035,87424.0,87414.0,0.01148]
[1766773505628,0.07109,87423.0,87414.0,0.01148]
[1766773506409,0.07109,87423.0,87414.0,0.01183738]
[1766773506610,0.02291785,87429.0,87414.0,0.01183738]
[1766773506611,0.09400785,87429.0,87414.0,0.01183738]
[1766773506835,0.05779802,87428.0,87414.0,0.01183738]
[1766773507093,0.01143811,87427.0,87414.0,0.01183738]
[1766773507517,0.12888802,87428.0,87414.0,0.01183738]
[1766773507518,0.140326,87428.0,87414.0,0.01183738]
[1766773508545,0.01143811,87427.0,87414.0,0.01183738]
[1766773508748,0.03113699,87426.0,87414.0,0.01183738]
[1766773509108,0.10222699,87426.0,87414.0,0.01183738]
[1766773510597,0.10222699,87426.0,87410.0,0.44966035]
[1766773510598,0.01143863,87423.0,87415.0,0.01148]
[1766773510727,0.01143863,87423.0,87415.0,0.00630387]
[1766773510728,0.01143889,87421.0,87415.0,0.00630387]
[1766773510930,0.01143889,87421.0,87415.0,0.00575387]
[1766773511474,0.08288566,87423.0,87415.0,0.00575387]
[1766773511776,0.01143811,87427.0,87423.0,0.00019197]
[1766773511974,0.01143798,87428.0,87423.0,0.00028592]
[1766773512133,0.09400785,87429.0,87423.0,0.00028592]
[1766773512337,0.09400785,87429.0,87423.0,9.395e-05]
[1766773512535,0.08257,87429.0,87423.0,9.395e-05]
[1766773512742,0.01148,87434.0,87423.0,9.395e-05]
[1766773512945,0.02291719,87434.0,87423.0,9.395e-05]
[1766773513463,0.01143732,87433.0,87424.0,0.04497543]
[1766773513827,0.02291719,87434.0,87424.0,0.04497543]
[1766773514069,0.02291719,87434.0,87423.0,9.395e-05]
[1766773514248,0.01148,87434.0,87423.0,9.395e-05]
[1766773515213,0.01143732,87433.0,87423.0,9.395e-05]
[1766773515407,0.02291719,87434.0,87423.0,9.395e-05]
[1766773515690,0.01148,87434.0,87423.0,9.395e-05]
[1766773516048,0.01143732,87433.0,87423.0,9.395e-05]
[1766773516785,0.06862452,87433.0,87423.0,9.395e-05]
[1766773516984,0.07144,87432.0,87423.0,9.395e-05]
[1766773517395,0.08287745,87432.0,87423.0,9.395e-05]
[1766773517699,0.07144,87432.0,87423.0,9.395e-05]
[1766773518061,0.08287745,87432.0,87423.0,9.395e-05]
[1766773518281,0.07144,87432.0,87423.0,9.395e-05]
[1766773520253,0.01143759,87431.0,87423.0,9.395e-05]
[1766773520634,0.01143772,87430.0,87423.0,9.395e-05]
[1766773521458,0.01143785,87429.0,87423.0,9.395e-05]
[1766773521655,0.07144,87426.0,87415.0,0.00403425]
[1766773521921,0.08287824,87426.0,87415.0,0.00414138]
[1766773522106,0.07144,87426.0,87415.0,0.00414138]
[1766773524381,0.44966035,87430.0,87415.0,0.00414138]
[1766773524382,0.08292,87434.0,87415.0,0.07742591]
[1766773524593,0.01148,87434.0,87420.0,0.44966035]
[1766773524792,0.01148,87434.0,87417.0,0.01143942]
[1766773524994,0.02291719,87434.0,87420.0,0.44966035]
[1766773525195,0.01143745,87432.0,87415.0,0.07742591]
[1766773525370,0.07144,87432.0,87415.0,0.00414138]
[1766773525571,0.14006523,87432.0,87415.0,0.00414138]
[1766773525780,0.44966035,87430.0,87415.0,0.00414138]
[1766773526198,0.08287785,87429.0,87415.0,0.00414138]
[1766773526396,0.07144,87427.0,87415.0,0.00414138]
[1766773527348,0.01143785,87429.0,87415.0,0.00414138]
[1766773527349,0.13727519,87426.0,87415.0,0.00414138]
[1766773528375,0.07144,87425.0,87415.0,0.00414138]
[1766773529982,0.01148,87434.0,87415.0,0.00414138]
[1766773530223,0.44966035,87430.0,87425.0,0.000285]
[1766773530552,0.01143785,87429.0,87425.0,0.000285]
[1766773530685,0.01143785,87429.0,87415.0,0.00414138]
[1766773530686,0.08287785,87429.0,87415.0,0.00414138]
[1766773530885,0.07144,87428.0,87415.0,0.00414138]
[1766773531084,0.08287798,87428.0,87415.0,0.00414138]
[1766773531525,0.07144,87428.0,87415.0,0.00414138]
[1766773532169,0.07144,87427.0,87415.0,0.00414138]
[1766773532366,0.01143863,87423.0,87415.0,0.00414138]
[1766773532511,0.07144,87424.0,87415.0,0.00414138]
[1766773534266,0.07144,87424.0,87415.0,0.03495731]
[1766773535077,0.07144,87424.0,87417.0,0.03081593]
[1766773535277,0.03110191,87423.0,87417.0,0.03081593]
[1766773535619,0.03110191,87423.0,87416.0,0.03081593]
[1766773536421,0.04254054,87423.0,87416.0,0.03081593]
[1766773536623,0.03110191,87423.0,87416.0,0.03081593]
[1766773541038,0.03110191,87423.0,87416.0,0.03093684]
[1766773543887,0.03110191,87423.0,87415.0,0.00414138]
[1766773543888,0.01143902,87420.0,87415.0,0.03077997]
[1766773544089,0.06863,87415.0,87403.0,0.04110618]
[1766773544330,0.06863,87414.0,87402.0,0.01168]
[1766773546963,0.068081,87414.0,87402.0,0.01168]
[1766773547177,0.00010703,87415.0,87402.0,0.01168]
[1766773548338,0.00010703,87415.0,87402.0,0.02312138]
[1766773548583,0.01148,87420.0,87415.0,0.000107]
[1766773548787,0.01148,87420.0,87403.0,0.07929496]
[1766773548788,0.01148,87420.0,87403.0,0.06884321]
[1766773549013,0.01148,87420.0,87403.0,0.05775899]
[1766773549882,0.46114035,87420.0,87403.0,0.06920024]
[1766773550308,0.46114035,87420.0,87403.0,0.01179828]
[1766773550477,0.46114035,87420.0,87403.0,0.00035703]
[1766773552802,0.46114035,87420.0,87403.0,0.01179828]
[1766773553538,0.46114035,87420.0,87404.0,0.01144112]
[1766773553844,0.46114035,87420.0,87406.0,0.01144086]
[1766773554048,0.52098028,87420.0,87405.0,0.01144099]
[1766773556171,0.50950028,87420.0,87403.0,0.01179828]
[1766773556377,0.05983993,87420.0,87403.0,0.01179828]
[1766773556670,0.09154863,87423.0,87404.0,0.01144112]
[1766773556866,0.08011,87423.0,87404.0,0.01144112]
[1766773557050,0.08011,87423.0,87403.0,0.00035703]
[1766773557795,0.01143876,87422.0,87403.0,0.00035703]
[1766773558643,0.01143889,87421.0,87403.0,0.00035703]
[1766773558864,0.03660778,87421.0,87403.0,0.00035703]
[1766773559865,0.02516889,87421.0,87403.0,0.00035703]
[1766773560689,0.03660778,87421.0,87403.0,0.00035703]
[1766773560892,0.44966035,87413.0,87403.0,0.00035703]
[1766773561071,0.08511033,87410.0,87403.0,3e-08]
[1766773561272,0.07367,87410.0,87403.0,3e-08]
[1766773561430,0.06835297,87409.0,87403.0,3e-08]
[1766773561637,0.01148,87415.0,87403.0,3e-08]
[1766773561877,0.07367,87417.0,87409.0,0.00025]
[1766773562419,0.01148,87418.0,87403.0,3e-08]
[1766773566019,0.01148,87418.0,87400.0,0.10107755]
[1766773566259,0.01183731,87418.0,87400.0,0.10107755]
[1766773566452,0.0232766,87418.0,87400.0,0.10107755]
[1766773566777,0.0257092,87417.0,87400.0,0.10107755]
[1766773566932,0.0257092,87417.0,87400.0,0.11251919]
[1766773568487,0.0257092,87417.0,87401.0,0.01144151]
[1766773568676,0.0257092,87417.0,87400.0,0.11251919]
[1766773569150,0.0257092,87417.0,87403.0,0.01144125]
[1766773569353,0.0257092,87417.0,87401.0,0.01144151]
[1766773569596,0.06413194,87416.0,87400.0,0.11251919]
[1766773570013,0.06413194,87416.0,87401.0,0.01144151]
[1766773571522,0.06413194,87416.0,87400.0,0.10107755]
[1766773571727,0.06413194,87416.0,87400.0,0.11251919]
[1766773571926,0.06413194,87416.0,87401.0,0.01144151]
[1766773572336,0.02098687,87415.0,87400.0,0.11251919]
[1766773573639,0.02098687,87415.0,87400.0,0.10107755]
[1766773574059,0.01143981,87414.0,87400.0,0.14218373]
[1766773574265,0.03242655,87415.0,87400.0,0.14218373]
[1766773574704,0.01143981,87414.0,87400.0,0.14218373]
[1766773574910,0.0257092,87413.0,87400.0,0.14218373]
[1766773578872,0.0257092,87413.0,87400.0,0.15362537]
[1766773579071,0.02098687,87415.0,87400.0,0.15362537]
[1766773579471,0.02098687,87415.0,87401.0,0.01144151]
[1766773579677,0.02098687,87415.0,87401.0,0.04110618]
[1766773581804,0.02098687,87415.0,87400.0,0.04110618]
[1766773582286,0.02098687,87415.0,87398.0,0.0229219]
[1766773582287,0.02098687,87415.0,87401.0,0.05254769]
[1766773582470,0.01183731,87418.0,87401.0,0.04110618]
[1766773582677,0.0232766,87418.0,87401.0,0.04110618]
[1766773582929,0.01183731,87418.0,87401.0,0.04110618]
[1766773583108,0.0232766,87418.0,87401.0,0.04110618]
[1766773583718,0.04124793,87437.0,87415.0,0.01143968]
[1766773583872,0.01143602,87443.0,87418.0,0.0008]
[1766773583873,0.07174,87438.0,87418.0,0.0008]
[1766773584079,0.08322,87438.0,87419.0,0.09323022]
[1766773584282,0.08322,87438.0,87419.0,0.03603491]
[1766773584501,0.08322,87438.0,87419.0,0.02459575]
[1766773584700,0.0114368,87437.0,87419.0,0.02459575]
[1766773584995,0.08322,87438.0,87420.0,0.0322211]
[1766773585366,0.08322,87438.0,87419.0,0.02459575]
[1766773585367,0.0114368,87437.0,87419.0,0.01148]
[1766773587525,0.01143693,87436.0,87419.0,0.01148]
[1766773587691,0.07174,87433.0,87419.0,0.01148]
[1766773592557,0.07174,87434.0,87418.0,0.00035731]
[1766773592771,0.08317719,87434.0,87420.0,0.01148]
[1766773592988,0.08317719,87434.0,87420.0,0.011181]
[1766773592989,0.07174,87434.0,87420.0,0.011181]
[1766773593191,0.0002,87430.0,87420.0,0.011181]
[1766773593967,0.01747146,87433.0,87422.0,0.01143876]
[1766773594322,0.07174,87434.0,87420.0,0.011181]
[1766773612496,0.07174,87434.0,87420.0,0.0420485]
[1766773613334,0.07174,87434.0,87422.0,0.0308675]
[1766773614067,0.08317719,87434.0,87422.0,0.0308675]
[1766773614301,0.08421732,87433.0,87422.0,0.0308675]
[1766773614839,0.08421745,87432.0,87422.0,0.0308675]
[1766773615075,0.07278,87432.0,87422.0,0.0308675]
[1766773617279,0.09607391,87432.0,87422.0,0.0308675]
[1766773618885,0.07278,87432.0,87422.0,0.0308675]
[1766773619518,0.07278,87432.0,87423.0,0.0308675]
[1766773620274,0.03088328,87447.0,87423.0,0.0308675]
[1766773620275,0.07278,87446.0,87432.0,0.000349]
[1766773620469,0.0222142,87445.0,87432.0,0.000349]
[1766773620690,0.0107342,87444.0,87427.0,0.01143811]
[1766773620882,0.02217009,87444.0,87426.0,0.0308675]
[1766773621086,0.01148,87445.0,87426.0,0.0308675]
[1766773621087,0.0835142,87443.0,87427.0,0.01148]
[1766773621290,0.07278,87443.0,87427.0,0.01148]
[1766773621601,0.01148,87445.0,87443.0,0.000349]
[1766773621800,0.01148,87445.0,87430.0,0.46146978]
[1766773622009,0.01148,87445.0,87430.0,0.46116503]
[1766773622703,0.01148,87445.0,87431.0,0.01143759]
[1766773622908,0.07278,87451.0,87435.0,0.44972731]
[1766773623118,0.01072751,87450.0,87440.0,0.44972731]
[1766773623323,0.07278,87451.0,87436.0,0.06640213]
[1766773623522,0.01072476,87450.0,87436.0,0.06640213]
[1766773623741,0.07278,87451.0,87436.0,0.06640213]
[1766773623980,0.01072466,87450.0,87436.0,0.06640213]
[1766773624185,0.07278,87451.0,87436.0,0.06640213]
[1766773625342,0.0114351,87450.0,87436.0,0.01148]
[1766773625487,0.01143575,87445.0,87436.0,0.01148]
[1766773625706,0.07278,87444.0,87436.0,0.01148]
[1766773628190,0.07278,87444.0,87423.0,0.01143863]
[1766773628191,0.073329,87436.0,87431.0,0.01148]
[1766773628605,0.07278,87436.0,87431.0,0.01148]
[1766773628810,0.07278,87436.0,87425.0,0.0308675]
[1766773628811,0.01143745,87432.0,87425.0,0.0308675]
[1766773629030,0.05797337,87436.0,87420.0,0.04110618]
[1766773629031,0.07278,87426.0,87420.0,0.0308675]
[1766773629229,0.07278,87426.0,87418.0,0.01183731]
[1766773629230,0.07278,87426.0,87418.0,0.04270481]
[1766773629457,0.07223,87426.0,87418.0,0.04270481]
[1766773635109,0.07223,87426.0,87418.0,0.00035731]
[1766773635315,0.00074169,87418.0,87412.0,0.01148]
[1766773635477,0.00035731,87418.0,87412.0,0.01148]
[1766773638411,0.00771604,87418.0,87412.0,0.01148]
[1766773639387,0.00035731,87418.0,87412.0,0.01148]
[1766773640238,3.1e-07,87418.0,87412.0,0.01148]
[1766773640647,3.1e-07,87418.0,87412.0,0.02292007]
[1766773640890,3.1e-07,87418.0,87412.0,0.01148]
[1766773641702,3.1e-07,87418.0,87414.0,0.01143981]
[1766773641914,3.1e-07,87418.0,87413.0,0.13031746]
[1766773642693,3.1e-07,87418.0,87414.0,0.01143981]
[1766773643936,3.1e-07,87418.0,87413.0,0.13031746]
[1766773644137,3.1e-07,87418.0,87412.0,0.01148]
[1766773644376,3.1e-07,87418.0,87413.0,0.13031746]
[1766773644664,3.1e-07,87418.0,87414.0,0.01143981]
[1766773645215,3.1e-07,87418.0,87413.0,0.11887752]
[1766773645861,3.1e-07,87418.0,87412.0,0.01148]
[1766773650745,3.1e-07,87418.0,87412.0,0.02292007]
[1766773651250,3.1e-07,87418.0,87412.0,0.01148]
[1766773652287,3.1e-07,87418.0,87412.0,0.010932]
[1766773652438,3.1e-07,87418.0,87410.0,0.0002]
[1766773652439,3.1e-07,87418.0,87413.0,0.01148]